[Event "FIDE World School-ch O-17 2025"]
[Site "Vrnjacka Banja"]
[Date "2025.03.27"]
[Round "8.5"]
[White "Andjelkovic, Aleksandar M"]
[Black "Gusev, Mikhail"]
[Result "0-1"]
[Annotator "TA"]
[ECO "E11"]
[WhiteElo "1930"]
[BlackElo "2250"]
[PlyCount "72"]
[EventDate "2025.03.19"]
[EventType "swiss"]
[EventCountry "SRB"]
[SourceTitle "playchess.com"]
[Source "ChessBase"]
[SourceQuality "1"]
[TimeControl "5400+30"]

{[%evp 23,72,47,71,41,44,48,60,-5,11,17,39,0,0,0,0,-3,-15,-31,9,-104,40,-197,-146,-148,-165,-200,-50,-49,-49,-64,-18,-33,-46,-31,0,7,0,-43,-9,-66,-70,-73,-82,-209,-220,-259,-246,-238,-249,-248,-228]} 1. d4 {[%emt 0:00:02]} Nf6 {[%emt 0:03:55]} 2. c4 {[%emt 0:00:53]} e6 {[%emt 0:00:08]} 3. Nf3 {[%emt 0:00:17]} Bb4+ {[%emt 0:00:19]} 4. Bd2 {[%emt 0:00:10]} Qe7 {[%emt 0:00:17]} 5. g3 {[%emt 0:00:20]} Nc6 {[%emt 0:01:34]} 6. Nc3 {[%emt 0:00:32]} Bxc3 {[%emt 0:03:21]} 7. Bxc3 {[%emt 0:00:10]} Ne4 {[%emt 0:01:12]} 8. Rc1 {[%emt 0:00:13]} d6 {[%emt 0:02:08][%cal Bd7d6,Bd6c5][%mdl 32]} 9. d5 {[%emt 0:05:42]} Nxc3 {[%emt 0:01:31]} 10. Rxc3 {[%emt 0:00:10]} Nd8 {[%emt 0:03:25]} 11. Bg2 {[%emt 0:01:25]} O-O {[%emt 0:01:02]} 12. O-O {[%emt 0:00:27]} e5 {[%emt 0:01:10]} 13. c5 {[%emt 0:19:52] E11: Bogo-Indian.} dxc5 {[%emt 0:06:49]} 14. Qc2 {[%emt 0:02:13] White sacrificed a pawn} b6 {[%emt 0:12:14] [#]} 15. b4 {[%emt 0:00:48]} Nb7 $11 {[%emt 0:05:57]} 16. Nd2 {[%emt 0:02:10]} Bg4 $146 {[%emt 0:05:14]} ({Predecessor:} 16... Rb8 17. Rc1 Bd7 18. Qb2 a5 19. bxc5 Nxc5 20. Qa3 Rfe8 21. Ne4 Na6 22. Qxe7 Rxe7 23. Rxc7 Nxc7 {1-0 Nguyen,N (2641)-Jinan,J (2400) Abu Dhabi op 29th 2023 (2)}) 17. Nb3 {[%emt 0:04:12][%cal Rb4c5]} a5 $1 {[%emt 0:03:52]} 18. bxc5 {[%emt 0:13:59]} a4 {[%emt 0:00:35]} 19. cxb6 {[%emt 0:03:29]} axb3 {[%emt 0:02:29]} 20. axb3 {[%emt 0:00:30]} Nd6 {[%emt 0:07:18]} (20... cxb6 $6 21. Rc7 Rac8 22. Rxe7 $16) 21. h3 {[%emt 0:07:18]} (21. Rxc7 $11 Qd8 22. Rc1) 21... Nb5 {[%emt 0:06:25]} (21... Bd7 $17 22. Rxc7 Ra5) 22. Rc5 $2 {[%emt 0:12:21] [#]} (22. d6 $14 Qxd6 23. hxg4 Nxc3 24. Bxa8 Rxa8 25. Qxc3 Qxb6 26. g5 (26. Qxe5 Qxb3 27. Qxc7 h6 $14)) 22... Nd4 {[%emt 0:01:57]} (22... cxb6 $2 23. Rxb5 Qd7 24. Rxb6 $18) (22... Bxe2 $19 23. b7 Rab8 (23... Bxf1 24. bxa8=R Rxa8 25. Bxf1 $16)) 23. Rxc7 $17 {[%emt 0:00:28]} Qd6 {[%emt 0:04:17] The board is on fire. Black is more active.} (23... Bxe2 24. Rxe7 Nxc2 25. d6 $15 (25. Rc1 Nd4 $16)) 24. Rc6 {[%emt 0:07:19]} Nxc2 {[%emt 0:06:19]} (24... Nxc6 25. dxc6 Bc8 26. b7 Bxb7 27. cxb7 $18) (24... Bxe2 25. Rxd6 Nxc2 26. b7 $16) ({Black should play} 24... Qb8 $19 25. Qc5 Bxe2) 25. Rxd6 $15 {[%emt 0:00:07]} Bxe2 {[%emt 0:00:04]} 26. Rc1 {[%emt 0:00:28]} Nd4 {[%emt 0:00:31]} (26... Bd3 $15 {was preferable.}) 27. b7 $11 {[%emt 0:02:12]} Rab8 {[%emt 0:00:05]} 28. Rb6 {[%emt 0:00:15]} Bf3 {[%emt 0:01:59]} 29. Bxf3 {[%emt 0:08:34]} Nxf3+ {[%emt 0:00:06]} 30. Kf1 {[%emt 0:00:09]} Nd4 {[%emt 0:02:43]} 31. b4 {[%emt 0:01:48]} (31. g4 $11) 31... Rfd8 $15 {[%emt 0:00:36]} 32. b5 {[%emt 0:00:32]} Kf8 {[%emt 0:00:39][%cal Od4f5] ...Nf5! would now be deadly.} (32... Rxd5 $2 33. Rc8+ Rd8 34. Rxd8+ Rxd8 35. b8=Q $18 (35. b8=R Rf8 $18)) 33. Rc7 {[%emt 0:01:24]} (33. d6 $17 {was the only defense.}) 33... Nf5 $19 {[%emt 0:03:43]} 34. Ra6 {[%emt 0:03:15]} Nd6 $1 {[%emt 0:02:06]} (34... Rxd5 $2 {is the wrong capture.} 35. Ra8 g6 36. Rxb8+ $18) 35. Rb6 {[%emt 0:01:31]} Ke8 {[%emt 0:01:34]} 36. Ke2 {[%emt 0:02:29]} Rd7 {[%emt 0:00:19] Weighted Error Value: White=0.44/Black=0.31  Loses game:     	White=1     	---        Mistake:       	White=4     	Black=4      Inaccurate:     	White=2     	Black=3      OK:         	White=6     	Black=8      Best:        	White=3     	Black=3      Strong:       	---       	Black=2} 0-1

[Event "FIDE World School-ch O-17 2025"]
[Site "Vrnjacka Banja"]
[Date "2025.03.27"]
[Round "8.6"]
[White "Zdravkovic, Filip"]
[Black "Yildiz, Egehan"]
[Result "0-1"]
[Annotator "TA"]
[ECO "B12"]
[WhiteElo "1963"]
[BlackElo "2204"]
[PlyCount "102"]
[EventDate "2025.03.19"]
[EventType "swiss"]
[EventCountry "SRB"]
[SourceTitle "playchess.com"]
[Source "ChessBase"]
[SourceQuality "1"]
[TimeControl "5400+30"]

{[%evp 9,102,-35,-34,-81,-61,-63,-43,-31,-53,-73,-76,-138,-128,-137,-97,-97,-119,-83,-77,-94,-85,-172,-143,-201,-197,-208,-183,-187,-181,-208,-95,-86,-74,-75,-85,-81,-63,-121,-139,-108,-96,-169,-147,-246,-225,-281,-245,-277,-253,-226,-191,-182,-106,-106,-109,-104,-106,-121,-107,-123,-35,-115,-58,-96,-95,-95,-71,-87,-37,-41,-37,-95,-97,-101,-92,-101,-79,-150,-101,-101,-20,-27,0,-101,-101,-150,-138,-317,-307,-287,-280,-275,-264,-29984,-29985]} 1. e4 {[%emt 0:00:05]} c6 {[%emt 0:00:05]} 2. d4 {[%emt 0:00:16]} d5 {[%emt 0:00:05]} 3. e5 {[%emt 0:00:42]} Bf5 {[%emt 0:00:47]} 4. h4 {[%emt 0:01:34]} h5 {[%emt 0:01:09]} 5. Bg5 {[%emt 0:01:18]} Qb6 {[%emt 0:01:19]} 6. Bd3 {[%emt 0:01:03] B12: Caro-Kann: Advance Variation.} (6. b3 $15) 6... Qxd4 $1 {[%emt 0:00:54][%mdl 4] is now more promising than 6...Bxd3.} 7. Nf3 {[%emt 0:02:16]} Qg4 {[%emt 0:00:15]} 8. Bxf5 $1 {[%emt 0:01:50] Black is slightly better.} Qxf5 {[%emt 0:00:02]} 9. O-O {[%emt 0:00:12][%cal Oc2c4]} f6 {[%emt 0:00:43]} 10. c4 {[%emt 0:10:46]} fxg5 $17 {[%emt 0:01:12]} 11. Qb3 {[%emt 0:00:37]} Na6 $146 {[%emt 0:31:50]} (11... Nd7 12. Qxb7 Rb8 13. Qxc6 Rh6 14. Qxd5 g4 15. Ng5 e6 16. Qd1 Rxb2 17. Nc3 Qc2 {0-1 Vujovic,S (2230)-Karthik,V (2590) Cetinje Dragasevic Memorial 2024 (1)}) 12. cxd5 {[%emt 0:04:19]} Nc5 {[%emt 0:05:11]} 13. Qc4 {[%emt 0:05:52]} e6 {[%emt 0:11:33]} (13... g4 14. Nd4 (14. Ng5 e6 $11) 14... Qxe5 15. Nc3 $15) 14. dxc6 {[%emt 0:05:58]} bxc6 {[%emt 0:04:06]} 15. b4 {[%emt 0:01:20]} (15. Nxg5 $17 Qg4 (15... Qxe5 16. Nc3 $14) 16. Qc2) 15... Qe4 {[%emt 0:02:41]} (15... g4 $6 16. Ng5 Be7 17. bxc5 Bxg5 18. hxg5 $11) 16. Qxe4 {[%emt 0:02:04]} (16. Nd4 $17 Rd8 (16... Qd3 17. Na3 $17) 17. Rd1) 16... Nxe4 $19 {[%emt 0:00:07]} 17. Re1 {[%emt 0:00:03] [#]} Nxf2 {[%emt 0:04:25]} 18. Kxf2 {[%emt 0:00:35]} Bxb4 {[%emt 0:00:09]} 19. Rc1 {[%emt 0:03:02]} Rc8 {[%emt 0:00:48]} (19... gxh4 $19 {has better winning chances.} 20. Rc4 Rb8) 20. Nxg5 {[%emt 0:01:38]} Ke7 {[%emt 0:00:54]} 21. Rc4 {[%emt 0:04:18]} Ba5 {[%emt 0:01:00]} 22. Nc3 {[%emt 0:01:53]} Nh6 {[%emt 0:02:30]} 23. Nce4 {[%emt 0:02:52]} (23. Ne2 $15) 23... Ng4+ $17 {[%emt 0:03:11]} 24. Ke2 {[%emt 0:00:49]} Bb6 {[%emt 0:06:15]} 25. Nf3 {[%emt 0:03:14]} (25. Nd6 $17 Rcf8 26. Nf3 Rxf3 (26... Nxe5 27. Nc8+ Rxc8 28. Nxe5 $17) 27. gxf3 Nxe5 28. Re4) 25... Ne3 $1 $19 {[%emt 0:01:13]} 26. Rc3 {[%emt 0:01:30]} (26. Ra4 $17) 26... Nxg2 {[%emt 0:01:09]} 27. Rac1 {[%emt 0:02:04]} Nf4+ {[%emt 0:00:46]} 28. Kf1 {[%emt 0:00:07]} Rhf8 {[%emt 0:03:01]} 29. Rxc6 {[%emt 0:02:24]} Rxc6 {[%emt 0:05:28]} 30. Rxc6 {[%emt 0:01:10]} Ng6 {[%emt 0:02:58]} (30... Rd8 $19 {and ...Rd1+ should not be overlooked} 31. Nd6 Kd7) 31. Neg5 $17 {[%emt 0:01:07]} Nxh4 {[%emt 0:00:54]} (31... Nxe5 $2 32. Rxe6+ Kd7 33. Rxe5 $18) 32. Rxe6+ {[%emt 0:00:41]} Kd7 {[%emt 0:00:10]} 33. Rd6+ {[%emt 0:00:24]} Kc8 {[%emt 0:00:41]} 34. Ke2 {[%emt 0:00:44]} Nf5 {[%emt 0:01:51]} (34... Nxf3 $17 35. Nxf3 g5 36. Nxg5 Rf2+ 37. Kd3 Rf5 (37... Rxa2 38. Rh6 $11)) 35. Rd5 {[%emt 0:03:28]} (35. Rg6 $15) 35... Re8 {[%emt 0:01:48]} (35... g6 $17 36. e6 Rd8 37. Rxd8+ Kxd8 (37... Bxd8 38. Kd3 $17)) 36. e6 {[%emt 0:01:21]} g6 {[%emt 0:02:39]} 37. Ne5 {[%emt 0:02:11]} Bd8 {[%emt 0:01:34]} 38. Nef7 {[%emt 0:09:15][%cal Od5f5]} Bxg5 {[%emt 0:00:45]} (38... Bf6 $17) 39. Nxg5 {[%emt 0:00:06][%mdl 4096] Endgame KRN-KRN. Black is a pawn up.} Ng7 {[%emt 0:00:37]} 40. Re5 {[%emt 0:00:44]} (40. Rd6 $15) 40... Kc7 {[%emt 0:01:18]} 41. Kf3 {[%emt 0:02:46]} Kd6 {[%emt 0:00:43][%csl LRe5,LRe6]} 42. Ra5 {[%emt 0:00:49]} Re7 {[%emt 0:01:06]} 43. Ra6+ {[%emt 0:00:31]} (43. Ke4 $142) 43... Kd5 {[%emt 0:00:14]} ({Better is} 43... Ke5 {[%cal Rg7e6]} 44. Ra5+ Kf6 45. Ne4+ Kxe6 46. Ra6+ Ke5 47. Ra5+ Kd4 48. Ra4+ Kd3 49. Nc5+ Kc3) 44. Ra5+ {[%emt 0:00:12] [#]} Kc6 {[%emt 0:00:27]} (44... Kd4 $1 $17 45. Kf4 Nxe6+ 46. Nxe6+ Rxe6 47. Rxa7 Re4+ 48. Kg5 Rg4+ 49. Kf6 Ke4) 45. Ra6+ $11 {[%emt 0:00:04]} Kd5 {[%emt 0:00:57]} (45... Kb7 $11 46. Rd6 Kc7) 46. Ra5+ $17 {[%emt 0:00:15] [#]} Kd4 $1 {[%emt 0:00:08]} 47. Ra4+ {[%emt 0:00:18]} (47. a4 $142) 47... Ke5 {[%emt 0:00:28]} 48. Re4+ $2 {[%emt 0:01:10] This costs White the game.} (48. Ra5+ $17 {was called for.} Kf6 49. Ne4+ Kxe6 50. Ra6+ Ke5 51. Ra5+ Kd4 52. Ra4+ Kd3 53. Ra3+ Kc4 54. Ra6) 48... Kf5 $19 {[%emt 0:01:03]} 49. Nf7 {[%emt 0:05:15]} Nxe6 {[%emt 0:00:08]} ({Weaker is} 49... Rxe6 50. Rf4#) 50. Nd6+ {[%emt 0:00:41]} Kf6 {[%emt 0:00:45]} 51. Nc8 $2 {[%emt 0:00:18]} (51. Ra4 $19) 51... Ng5+ {[%emt 0:00:06] Weighted Error Value: White=0.40/Black=0.22 (precise)   Loses game:     	White=1     	---        Mistake:       	White=11    	Black=8      Inaccurate:     	White=1     	---        OK:         	White=12    	Black=15     Best:        	White=5     	Black=5      Strong:       	White=1     	Black=2} 0-1

[Event "FIDE World School-ch O-17 2025"]
[Site "Vrnjacka Banja"]
[Date "2025.03.27"]
[Round "8.7"]
[White "Amankos, Zhanbolat"]
[Black "Orgilon Batsaikhan"]
[Result "0-1"]
[Annotator "NA RC"]
[ECO "E62"]
[WhiteElo "1954"]
[BlackElo "2024"]
[PlyCount "82"]
[EventDate "2025.03.19"]
[EventType "swiss"]
[EventCountry "SRB"]
[SourceTitle "playchess.com"]
[Source "ChessBase"]
[SourceQuality "1"]
[TimeControl "5400+30"]

1. d4 {[%emt 0:00:02]} Nf6 {[%emt 0:00:12]} 2. c4 {[%emt 0:00:19]} g6 {[%emt 0:00:15]} 3. g3 {[%emt 0:02:10]} Bg7 {[%emt 0:00:09]} 4. Bg2 {[%emt 0:00:08]} O-O {[%emt 0:00:07]} 5. Nf3 {[%emt 0:00:09]} d6 {[%emt 0:00:05]} 6. Nc3 {[%emt 0:00:50]} c6 {[%emt 0:00:08]} 7. O-O {[%emt 0:00:32]} Bf5 {[%emt 0:00:08]} 8. Nh4 {[%emt 0:02:28]} Be6 {[%emt 0:00:17]} 9. Qd3 {[%emt 0:08:34]} d5 {[%emt 0:02:12]} 10. cxd5 {[%emt 0:02:12]} cxd5 {[%emt 0:06:31]} 11. f4 {[%emt 0:11:07]} Nc6 {[%emt 0:09:34]} 12. e3 {[%emt 0:00:44]} Bc8 {[%emt 0:06:51]} 13. Bd2 {[%emt 0:02:43]} e6 {[%emt 0:00:46]} 14. Rac1 {[%emt 0:01:42]} Ne8 {[%emt 0:01:34]} 15. Na4 {[%emt 0:14:40]} Nd6 {[%emt 0:02:27]} 16. b3 {[%emt 0:12:29]} a5 {[%emt 0:07:12]} 17. Nf3 {[%emt 0:08:50]} Ne7 {[%emt 0:05:50]} 18. Qc2 {[%emt 0:04:50]} Bd7 {[%emt 0:02:23]} 19. Nb2 {[%emt 0:02:21]} Bb5 {[%emt 0:05:27]} 20. Rfe1 {[%emt 0:00:45]} Rc8 {[%emt 0:00:31]} 21. Qb1 {[%emt 0:00:14]} Qb6 {[%emt 0:03:51]} 22. Ne5 {[%emt 0:02:06]} Rfd8 {[%emt 0:01:53]} 23. Rxc8 {[%emt 0:02:10]} Rxc8 {[%emt 0:01:03]} 24. Rc1 {[%emt 0:00:23]} Nc6 {[%emt 0:03:13]} 25. Nxc6 {[%emt 0:07:48]} Rxc6 {[%emt 0:03:01]} 26. Nd3 {[%emt 0:03:48]} Bxd4 {[%emt 0:04:21]} 27. exd4 {[%emt 0:06:14]} Qxd4+ {[%emt 0:00:07]} 28. Nf2 {[%emt 0:00:03]} Qxd2 {[%emt 0:00:15]} 29. Rxc6 {[%emt 0:00:41]} bxc6 {[%emt 0:34:37]} 30. Ng4 {[%emt 0:00:31]} Qd4+ {[%emt 0:00:00]} 31. Kh1 {[%emt 0:00:20]} Bd3 {[%emt 0:00:00]} 32. Qe1 {[%emt 0:00:38]} Be4 {[%emt 0:00:00]} 33. h4 {[%emt 0:01:59]} Qb2 {[%emt 0:00:00]} 34. Qf2 {[%emt 0:01:24]} Qxf2 {[%emt 0:00:00]} 35. Nxf2 {[%emt 0:00:07]} Bb1 {[%emt 0:00:00]} 36. a3 {[%emt 0:01:05]} c5 {[%emt 0:00:00]} 37. Bf3 {[%emt 0:00:32]} c4 {[%emt 0:00:00]} 38. bxc4 {[%emt 0:00:42]} dxc4 {[%emt 0:00:00]} 39. Nd1 {[%emt 0:00:25]} Nb5 {[%emt 0:00:00]} 40. a4 {[%emt 0:00:54]} c3 {[%emt 0:00:00]} 41. Ne3 {[%emt 0:00:45]} Nd4 {[%emt 0:00:00]} 0-1

[Event "FIDE World School-ch O-17 2025"]
[Site "Vrnjacka Banja"]
[Date "2025.03.27"]
[Round "8.8"]
[White "Milanovic, Marko"]
[Black "Guntaka, Aayansh"]
[Result "1-0"]
[Annotator "TA"]
[ECO "B45"]
[WhiteElo "2271"]
[BlackElo "1866"]
[PlyCount "57"]
[EventDate "2025.03.19"]
[EventType "swiss"]
[EventCountry "SRB"]
[SourceTitle "playchess.com"]
[Source "ChessBase"]
[SourceQuality "1"]
[TimeControl "5400+30"]

{[%evp 17,56,-3,10,39,37,40,61,65,54,56,65,87,212,202,247,242,254,237,239,221,337,217,259,212,353,222,229,250,247,211,642,632,1279,1247,29990,29989,29995,29996,29998,29999,29999]} 1. e4 {[%emt 0:02:27]} c5 {[%emt 0:00:08]} 2. Nf3 {[%emt 0:00:20]} e6 {[%emt 0:00:08]} 3. d4 {[%emt 0:00:36]} cxd4 {[%emt 0:00:06]} 4. Nxd4 {[%emt 1:29:07]} Nf6 {[%emt 0:00:10]} 5. Nc3 {[%emt 0:00:00][%cal Bb1c3,Bc3e4,Be4g5,Bg5f3][%mdl 32]} Nc6 {[%emt 0:00:05]} 6. Nxc6 {[%emt 0:00:00]} bxc6 {[%emt 0:00:08]} 7. e5 {[%emt 0:00:00]} Nd5 {[%emt 0:00:05]} 8. Ne4 {[%emt 0:00:00]} Qc7 {[%emt 0:00:06]} 9. f4 {[%emt 0:00:00]} f5 {[%emt 0:00:09]} 10. exf6 {[%emt 0:00:00] B45: Sicilian Four Knights.} gxf6 {[%emt 0:00:07][%cal Oh7h5] 10...gxf6 is better than 10...Nxf6.} 11. Qf3 {[%emt 0:00:00]} f5 {[%emt 0:03:08]} 12. Qh5+ $146 {[%emt 0:00:00] White is slightly better.} (12. Ng5 h5 13. c4 Nf6 14. Bd2 Bb7 15. Bc3 c5 16. Qe2 Be7 17. Be5 Qa5+ 18. Bc3 {½-½ Baches Garcia,G (2335)-Kosteniuk,A (2536) Titled Tuesday intern op 28th Mar Early blitz 2023 (11)}) 12... Kd8 {[%emt 0:02:15]} 13. Ng5 {[%emt 0:00:00] A sharp opening} Nf6 {[%emt 0:02:38]} 14. Qh4 {[%emt 0:00:00][%cal Og5e6] White is more active.} ({Avoid the trap} 14. Nf7+ $2 Ke7 15. Qh4 Kxf7 $19) 14... Ke7 {[%emt 0:03:13]} (14... d5 $16) 15. Bd2 $18 {[%emt 0:00:00]} Bg7 {[%emt 0:06:47]} 16. Bc3 {[%emt 0:00:00]} h6 {[%emt 0:01:19]} 17. Nf3 {[%emt 0:00:00]} d6 {[%emt 0:03:02] [#]} 18. O-O-O $1 {[%emt 0:00:00][%cal Og2g4]} Rb8 {[%emt 0:02:22]} (18... Kf7 $142 19. Rg1 Bb7) 19. Bc4 {[%emt 0:00:00]} Kf7 {[%emt 0:04:21]} 20. Rhe1 {[%emt 0:00:00][%cal Og2g4]} a5 {[%emt 0:05:51]} (20... Rf8 {was necessary.} 21. Bb3 Rh8) 21. h3 {[%emt 0:00:00]} Ne4 {[%emt 0:09:42] [#]} 22. Bxg7 {[%emt 0:00:00]} Kxg7 {[%emt 0:00:06]} 23. g4 {[%emt 0:00:00]} Qb7 $2 {[%emt 0:05:53]} (23... Qd8 24. Qxd8 Rxd8) 24. b3 {[%emt 0:00:04] Strongly threatening gxf5.} Qa7 {[%emt 0:28:24]} 25. gxf5 {[%emt 0:01:51]} exf5 {[%emt 0:00:10]} 26. Rxd6 {[%emt 0:04:43] White mates.} Rb7 {[%emt 0:09:11] [#]} 27. Rxe4 $1 {[%emt 0:00:52][%mdl 512]} Rf7 {[%emt 0:01:45]} (27... Be6 28. Rexe6) 28. Qg3+ {[%emt 0:00:38]} Kf8 {[%emt 0:00:35]} 29. Rd8# {[%emt 0:00:08] Black did not feel at home in the position after the opening.   Weighted Error Value: White=0.24 (precise) /Black=1.06  Mistake:       	---       	Black=4      Inaccurate:     	White=2     	Black=1      OK:         	White=6     	Black=2      Best:        	White=1     	Black=2      Strong:       	White=2     	---} 1-0